[Event "Titled Tuesday Blitz February 21 Early 2023"]
[White "Gu, Xiaobing"]
[Black "Zahid, Sanatan"]
[WhiteFideId "8602611"]
[BlackFideId "10201963"]
[WhiteElo "2167"]
[BlackElo "1930"]
[Result "0-1"]
[Round "01"]
[TimeControl "180+2"]
[Date "2023.02.21"]
[WhiteClock "0:00:02"]
[BlackClock "0:01:19"]

1. e4 {[%clk 0:02:56]}  e6 {[%clk 0:03:00]} 2. d4 {[%clk 0:02:52]}  d5 {[%clk 0:02:59]} 3. exd5 {[%clk 0:02:49]}  exd5 {[%clk 0:02:57]} 4. Nf3 {[%clk 0:02:49]}  Nc6 {[%clk 0:02:57]} 5. Bd3 {[%clk 0:02:37]}  Bd6 {[%clk 0:02:56]} 6. O-O {[%clk 0:02:29]}  Nge7 {[%clk 0:02:55]} 7. Nc3 {[%clk 0:02:27]}  O-O {[%clk 0:02:47]} 8. Nb5 {[%clk 0:02:01]}  Bf5 {[%clk 0:02:29]} 9. Re1 {[%clk 0:01:54]}  Re8 {[%clk 0:02:27]} 10. Bg5 {[%clk 0:01:52]}  f6 {[%clk 0:02:23]} 11. Nxd6 {[%clk 0:01:46]}  Qxd6 {[%clk 0:02:22]} 12. Bh4 {[%clk 0:01:43]}  Qd7 {[%clk 0:02:22]} 13. c3 {[%clk 0:01:35]}  Bxd3 {[%clk 0:02:19]} 14. Qxd3 {[%clk 0:01:34]}  Nf5 {[%clk 0:02:19]} 15. Bg3 {[%clk 0:01:30]}  Nce7 {[%clk 0:02:19]} 16. Re2 {[%clk 0:01:27]}  Ng6 {[%clk 0:02:18]} 17. Rae1 {[%clk 0:01:26]}  Rxe2 {[%clk 0:02:17]} 18. Qxe2 {[%clk 0:01:23]}  Kf7 {[%clk 0:02:13]} 19. Kf1 {[%clk 0:01:05]}  c6 {[%clk 0:02:12]} 20. a4 {[%clk 0:01:04]}  h5 {[%clk 0:02:11]} 21. h3 {[%clk 0:00:54]}  Nxg3+ {[%clk 0:02:07]} 22. fxg3 {[%clk 0:00:51]}  Ne7 {[%clk 0:02:07]} 23. Kg1 {[%clk 0:00:44]}  Nf5 {[%clk 0:02:07]} 24. Qf2 {[%clk 0:00:20]}  Re8 {[%clk 0:02:06]} 25. Rxe8 {[%clk 0:00:16]}  Kxe8 {[%clk 0:02:07]} 26. Nh4 {[%clk 0:00:13]}  Nxh4 {[%clk 0:02:00]} 27. gxh4 {[%clk 0:00:13]}  Kf7 {[%clk 0:02:01]} 28. Qf3 {[%clk 0:00:13]}  g6 {[%clk 0:02:00]} 29. Qe3 {[%clk 0:00:12]}  Qe7 {[%clk 0:01:58]} 30. Qh6 {[%clk 0:00:12]}  Qf8 {[%clk 0:01:58]} 31. Qe3 {[%clk 0:00:11]}  a5 {[%clk 0:01:58]} 32. Qf4 {[%clk 0:00:10]}  Qe7 {[%clk 0:01:57]} 33. Qh6 {[%clk 0:00:11]}  Qf8 {[%clk 0:01:51]} 34. Qf4 {[%clk 0:00:10]}  Ke6 {[%clk 0:01:48]} 35. Qc7 {[%clk 0:00:10]}  Qe7 {[%clk 0:01:49]} 36. Qxa5 {[%clk 0:00:10]}  Kf5 {[%clk 0:01:49]} 37. Kh2 {[%clk 0:00:09]}  Kf4 {[%clk 0:01:46]} 38. Qa8 {[%clk 0:00:07]}  Ke3 {[%clk 0:01:45]} 39. Qh8 {[%clk 0:00:06]}  Kf2 {[%clk 0:01:44]} 40. Qh6 {[%clk 0:00:06]}  g5 {[%clk 0:01:43]} 41. hxg5 {[%clk 0:00:05]}  fxg5 {[%clk 0:01:38]} 42. Qxh5 {[%clk 0:00:05]}  Qd6+ {[%clk 0:01:36]} 43. Kh1 {[%clk 0:00:05]}  Qe7 {[%clk 0:01:32]} 44. Qf3+ {[%clk 0:00:04]}  Ke1 {[%clk 0:01:32]} 45. Qd3 {[%clk 0:00:03]}  Qf6 {[%clk 0:01:30]} 46. Qg3+ {[%clk 0:00:03]}  Kd2 {[%clk 0:01:27]} 47. Qf3 {[%clk 0:00:03]}  Qe7 {[%clk 0:01:26]} 48. Qf2+ {[%clk 0:00:03]}  Kc1 {[%clk 0:01:26]} 49. Kh2 {[%clk 0:00:03]}  Qd6+ {[%clk 0:01:24]} 50. Kh1 {[%clk 0:00:03]}  Kb1 {[%clk 0:01:23]} 51. g3 {[%clk 0:00:02]}  Qe6 {[%clk 0:01:23]} 52. h4 {[%clk 0:00:03]}  gxh4 {[%clk 0:01:21]} 53. gxh4 {[%clk 0:00:03]}  Qg4 {[%clk 0:01:21]} 54. Kh2 {[%clk 0:00:03]}  b6 {[%clk 0:01:19]} 55. Qg1+ {[%clk 0:00:02]}  Qxg1+ {[%clk 0:01:17]} 56. Kxg1 {[%clk 0:00:02]}  Kxb2 {[%clk 0:01:17]} 57. h5 {[%clk 0:00:03]}  b5 {[%clk 0:01:17]} 58. h6 {[%clk 0:00:01]}  bxa4 {[%clk 0:01:17]} 59. h7 {[%clk 0:00:01]}  a3 {[%clk 0:01:17]} 60. h8=Q {[%clk 0:00:01]}  a2 {[%clk 0:01:18]} 61. Qb8+ {[%clk 0:00:02]}  Kxc3 {[%clk 0:01:19]} 0-1


[Site "https://www.chess.com"]

[Event "Titled Tuesday Blitz February 21 Early 2023"]
[White "Kislinsky, Alexey"]
[Black "Devaev, Alexander"]
[WhiteFideId "14108801"]
[BlackFideId "4169395"]
[WhiteElo "2357"]
[BlackElo "2325"]
[Result "1-0"]
[Round "01"]
[TimeControl "180+2"]
[Date "2023.02.21"]
[WhiteClock "0:02:01"]
[BlackClock "0:00:18"]

1. e4 {[%clk 0:02:46]}  c6 {[%clk 0:02:58]} 2. Nc3 {[%clk 0:02:42]}  d5 {[%clk 0:02:58]} 3. Qf3 {[%clk 0:02:41]}  e6 {[%clk 0:02:48]} 4. d4 {[%clk 0:02:37]}  Nf6 {[%clk 0:02:43]} 5. e5 {[%clk 0:02:36]}  Nfd7 {[%clk 0:02:43]} 6. Qg3 {[%clk 0:02:35]}  a6 {[%clk 0:02:34]} 7. Nf3 {[%clk 0:02:33]}  c5 {[%clk 0:02:35]} 8. dxc5 {[%clk 0:02:32]}  Nxc5 {[%clk 0:02:34]} 9. a3 {[%clk 0:02:31]}  Nc6 {[%clk 0:02:32]} 10. Bd3 {[%clk 0:02:31]}  b5 {[%clk 0:02:11]} 11. h4 {[%clk 0:02:29]}  Bb7 {[%clk 0:02:10]} 12. h5 {[%clk 0:02:29]}  h6 {[%clk 0:01:56]} 13. O-O {[%clk 0:02:28]}  d4 {[%clk 0:01:05]} 14. Ne4 {[%clk 0:02:26]}  Nxd3 {[%clk 0:00:58]} 15. cxd3 {[%clk 0:02:25]}  Na5 {[%clk 0:00:57]} 16. Nfd2 {[%clk 0:02:16]}  Qb6 {[%clk 0:00:29]} 17. b4 {[%clk 0:02:15]}  Nc6 {[%clk 0:00:30]} 18. Nb3 {[%clk 0:02:09]}  a5 {[%clk 0:00:23]} 19. Bd2 {[%clk 0:02:05]}  axb4 {[%clk 0:00:21]} 20. axb4 {[%clk 0:02:05]}  Ra4 {[%clk 0:00:20]} 21. Nbc5 {[%clk 0:02:05]}  Ra8 {[%clk 0:00:17]} 22. Rxa8+ {[%clk 0:02:02]}  Bxa8 {[%clk 0:00:18]} 23. Ra1 {[%clk 0:02:01]}  Bb7 {[%clk 0:00:18]} 24. Nd6+ {[%clk 0:02:01]}  Bxd6 {[%clk 0:00:18]} 25. exd6 {[%clk 0:02:02]}  Kf8 {[%clk 0:00:18]} 26. Nd7+ {[%clk 0:02:01]} 1-0


[Site "https://www.chess.com"]

[Event "Titled Tuesday Blitz February 21 Early 2023"]
[White "Oro, Faustino"]
[Black "Rangel, Daniel"]
[WhiteFideId "20000197"]
[BlackFideId "2124475"]
[WhiteElo "2269"]
[BlackElo "2207"]
[Result "1-0"]
[Round "01"]
[TimeControl "180+2"]
[Date "2023.02.21"]
[WhiteClock "0:00:16"]
[BlackClock "0:00:04"]

1. e4 {[%clk 0:02:57]}  c5 {[%clk 0:02:59]} 2. Nf3 {[%clk 0:02:58]}  g6 {[%clk 0:03:00]} 3. d4 {[%clk 0:02:57]}  cxd4 {[%clk 0:03:01]} 4. Nxd4 {[%clk 0:02:56]}  Bg7 {[%clk 0:03:01]} 5. c4 {[%clk 0:02:56]}  Nc6 {[%clk 0:03:02]} 6. Be3 {[%clk 0:02:56]}  Nf6 {[%clk 0:03:02]} 7. Nc3 {[%clk 0:02:56]}  O-O {[%clk 0:03:02]} 8. f3 {[%clk 0:02:52]}  Nxd4 {[%clk 0:03:02]} 9. Bxd4 {[%clk 0:02:52]}  d6 {[%clk 0:03:03]} 10. Be2 {[%clk 0:02:52]}  Bd7 {[%clk 0:03:03]} 11. O-O {[%clk 0:02:53]}  Bc6 {[%clk 0:03:04]} 12. Qd2 {[%clk 0:02:50]}  Nd7 {[%clk 0:03:02]} 13. Be3 {[%clk 0:02:50]}  a5 {[%clk 0:03:01]} 14. b3 {[%clk 0:02:46]}  Nc5 {[%clk 0:03:00]} 15. Rac1 {[%clk 0:02:45]}  e6 {[%clk 0:02:54]} 16. Rfd1 {[%clk 0:02:44]}  Be5 {[%clk 0:02:53]} 17. Bf2 {[%clk 0:02:10]}  b6 {[%clk 0:02:49]} 18. Qe3 {[%clk 0:01:50]}  g5 {[%clk 0:02:39]} 19. g3 {[%clk 0:01:49]}  Kh8 {[%clk 0:02:34]} 20. Bf1 {[%clk 0:01:38]}  f5 {[%clk 0:02:20]} 21. exf5 {[%clk 0:01:35]}  Rxf5 {[%clk 0:02:21]} 22. Bg2 {[%clk 0:01:32]}  Qf6 {[%clk 0:02:21]} 23. Ne4 {[%clk 0:01:25]}  Bxe4 {[%clk 0:01:29]} 24. fxe4 {[%clk 0:01:26]}  Rxf2 {[%clk 0:01:29]} 25. Qxf2 {[%clk 0:01:25]}  Qg7 {[%clk 0:01:27]} 26. Qe2 {[%clk 0:01:23]}  h6 {[%clk 0:01:05]} 27. Rf1 {[%clk 0:01:18]}  Rf8 {[%clk 0:01:02]} 28. Bh3 {[%clk 0:01:15]}  Bd4+ {[%clk 0:00:54]} 29. Kh1 {[%clk 0:01:14]}  Rg8 {[%clk 0:00:51]} 30. Qh5 {[%clk 0:01:08]}  Bf6 {[%clk 0:00:35]} 31. Rce1 {[%clk 0:01:01]}  Nd3 {[%clk 0:00:32]} 32. Re2 {[%clk 0:00:58]}  Rf8 {[%clk 0:00:13]} 33. Bxe6 {[%clk 0:00:50]}  Bd4 {[%clk 0:00:12]} 34. Bf5 {[%clk 0:00:48]}  Ne5 {[%clk 0:00:09]} 35. Rd2 {[%clk 0:00:39]}  Bc5 {[%clk 0:00:08]} 36. Rg2 {[%clk 0:00:31]}  Rf6 {[%clk 0:00:08]} 37. h4 {[%clk 0:00:31]}  g4 {[%clk 0:00:06]} 38. Qe8+ {[%clk 0:00:27]}  Rf8 {[%clk 0:00:06]} 39. Qh5 {[%clk 0:00:27]}  Rf6 {[%clk 0:00:06]} 40. Rd2 {[%clk 0:00:26]}  Qf8 {[%clk 0:00:06]} 41. Rd5 {[%clk 0:00:25]}  Qg7 {[%clk 0:00:03]} 42. Kg2 {[%clk 0:00:22]}  Qf8 {[%clk 0:00:04]} 43. Rfd1 {[%clk 0:00:18]}  Kg7 {[%clk 0:00:03]} 44. Rxe5 {[%clk 0:00:16]}  dxe5 {[%clk 0:00:03]} 45. Rd7+ {[%clk 0:00:16]}  Rf7 {[%clk 0:00:03]} 46. Qxg4+ {[%clk 0:00:17]}  Kh8 {[%clk 0:00:04]} 47. Rd5 {[%clk 0:00:16]}  Bd4 {[%clk 0:00:04]} 48. Qg6 {[%clk 0:00:16]}  Qg7 {[%clk 0:00:03]} 49. Rd8+ {[%clk 0:00:15]}  Rf8 {[%clk 0:00:03]} 50. Rxf8+ {[%clk 0:00:15]}  Qxf8 {[%clk 0:00:04]} 51. Qh7# {[%clk 0:00:16]} 1-0


[Site "https://www.chess.com"]

[Event "Titled Tuesday Blitz February 21 Early 2023"]
[White "Horvath, Dominik"]
[Black "Goldin, Roman"]
[WhiteFideId "1642561"]
[BlackFideId "2803860"]
[WhiteElo "2523"]
[BlackElo "2322"]
[Result "1-0"]
[Round "01"]
[TimeControl "180+2"]
[Date "2023.02.21"]
[WhiteClock "0:00:56"]
[BlackClock "0:00:10"]

1. e4 {[%clk 0:03:00]}  Nc6 {[%clk 0:02:54]} 2. Nf3 {[%clk 0:03:00]}  e5 {[%clk 0:02:52]} 3. Bb5 {[%clk 0:02:59]}  a6 {[%clk 0:02:52]} 4. Ba4 {[%clk 0:03:00]}  Nf6 {[%clk 0:02:52]} 5. O-O {[%clk 0:03:00]}  Be7 {[%clk 0:02:52]} 6. d3 {[%clk 0:02:58]}  d6 {[%clk 0:02:51]} 7. c4 {[%clk 0:02:57]}  Nd7 {[%clk 0:02:49]} 8. Nc3 {[%clk 0:02:57]}  Nc5 {[%clk 0:02:49]} 9. Bxc6+ {[%clk 0:02:57]}  bxc6 {[%clk 0:02:49]} 10. d4 {[%clk 0:02:58]}  Nd7 {[%clk 0:02:31]} 11. Qa4 {[%clk 0:02:45]}  Bb7 {[%clk 0:02:29]} 12. dxe5 {[%clk 0:02:42]}  dxe5 {[%clk 0:02:27]} 13. Rd1 {[%clk 0:02:42]}  Qc8 {[%clk 0:01:52]} 14. Be3 {[%clk 0:02:25]}  O-O {[%clk 0:01:51]} 15. Rd2 {[%clk 0:02:25]}  f6 {[%clk 0:01:44]} 16. b4 {[%clk 0:02:19]}  a5 {[%clk 0:01:26]} 17. bxa5 {[%clk 0:02:19]}  Nc5 {[%clk 0:01:20]} 18. Qc2 {[%clk 0:02:06]}  Rxa5 {[%clk 0:01:18]} 19. Rad1 {[%clk 0:02:05]}  Ba6 {[%clk 0:01:08]} 20. Ne2 {[%clk 0:01:57]}  Qe6 {[%clk 0:01:01]} 21. Ng3 {[%clk 0:01:53]}  g6 {[%clk 0:00:50]} 22. Bxc5 {[%clk 0:01:39]}  Rxc5 {[%clk 0:00:44]} 23. Qa4 {[%clk 0:01:24]}  Bxc4 {[%clk 0:00:41]} 24. Qa7 {[%clk 0:01:23]}  Bd6 {[%clk 0:00:33]} 25. Nh4 {[%clk 0:01:18]}  Rb5 {[%clk 0:00:30]} 26. h3 {[%clk 0:01:03]}  Rbb8 {[%clk 0:00:23]} 27. Rxd6 {[%clk 0:00:55]}  cxd6 {[%clk 0:00:17]} 28. Nhf5 {[%clk 0:00:56]}  gxf5 {[%clk 0:00:10]} 29. Nxf5 {[%clk 0:00:56]} 1-0


[Site "https://www.chess.com"]

[Event "Titled Tuesday Blitz February 21 Early 2023"]
[White "Iljin, Timofey"]
[Black "Matinian, Nikita"]
[WhiteFideId "14110180"]
[BlackFideId "24129100"]
[WhiteElo "2329"]
[BlackElo "2407"]
[Result "0-1"]
[Round "01"]
[TimeControl "180+2"]
[Date "2023.02.21"]
[WhiteClock "0:00:08"]
[BlackClock "0:00:28"]

1. e4 {[%clk 0:02:58]}  e5 {[%clk 0:02:59]} 2. Nf3 {[%clk 0:02:57]}  Nc6 {[%clk 0:02:59]} 3. Bc4 {[%clk 0:02:58]}  Be7 {[%clk 0:02:59]} 4. d4 {[%clk 0:02:57]}  d6 {[%clk 0:02:59]} 5. O-O {[%clk 0:02:56]}  Nf6 {[%clk 0:02:59]} 6. Nc3 {[%clk 0:02:57]}  O-O {[%clk 0:02:59]} 7. h3 {[%clk 0:02:55]}  Nxe4 {[%clk 0:02:13]} 8. Nxe4 {[%clk 0:02:50]}  d5 {[%clk 0:02:13]} 9. Bxd5 {[%clk 0:02:47]}  Qxd5 {[%clk 0:02:11]} 10. Nc3 {[%clk 0:02:47]}  Qa5 {[%clk 0:02:01]} 11. d5 {[%clk 0:02:41]}  Rd8 {[%clk 0:02:00]} 12. Bd2 {[%clk 0:02:39]}  Nb4 {[%clk 0:02:00]} 13. Nxe5 {[%clk 0:02:05]}  Nxd5 {[%clk 0:01:59]} 14. Qf3 {[%clk 0:01:38]}  Be6 {[%clk 0:01:57]} 15. Rfe1 {[%clk 0:01:38]}  c6 {[%clk 0:01:45]} 16. a3 {[%clk 0:01:20]}  Qb6 {[%clk 0:01:18]} 17. Nc4 {[%clk 0:00:33]}  Qa6 {[%clk 0:01:15]} 18. Ne5 {[%clk 0:00:27]}  Bf6 {[%clk 0:01:13]} 19. Nxd5 {[%clk 0:00:21]}  Bxd5 {[%clk 0:01:12]} 20. Qg3 {[%clk 0:00:21]}  Bxg2 {[%clk 0:01:00]} 21. Ng4 {[%clk 0:00:15]}  Bxb2 {[%clk 0:00:59]} 22. Rab1 {[%clk 0:00:08]}  Qxa3 {[%clk 0:00:56]} 23. Qxa3 {[%clk 0:00:06]}  Bxa3 {[%clk 0:00:56]} 24. Bg5 {[%clk 0:00:04]}  Rd5 {[%clk 0:00:47]} 25. Kxg2 {[%clk 0:00:05]}  Rxg5 {[%clk 0:00:47]} 26. Kh2 {[%clk 0:00:02]}  Bd6+ {[%clk 0:00:46]} 27. Kh1 {[%clk 0:00:02]}  Rb5 {[%clk 0:00:44]} 28. Rbd1 {[%clk 0:00:02]}  Rd5 {[%clk 0:00:41]} 29. Rb1 {[%clk 0:00:03]}  b5 {[%clk 0:00:41]} 30. c4 {[%clk 0:00:03]}  bxc4 {[%clk 0:00:40]} 31. Rb7 {[%clk 0:00:04]}  h5 {[%clk 0:00:39]} 32. Ne3 {[%clk 0:00:04]}  Re5 {[%clk 0:00:37]} 33. Rc1 {[%clk 0:00:05]}  Bc5 {[%clk 0:00:34]} 34. Nxc4 {[%clk 0:00:05]}  Rf5 {[%clk 0:00:34]} 35. Rc2 {[%clk 0:00:05]}  Rxf2 {[%clk 0:00:32]} 36. Rxf2 {[%clk 0:00:05]}  Bxf2 {[%clk 0:00:32]} 37. Ne5 {[%clk 0:00:06]}  a5 {[%clk 0:00:29]} 38. Nxc6 {[%clk 0:00:03]}  a4 {[%clk 0:00:29]} 39. Nb4 {[%clk 0:00:02]}  a3 {[%clk 0:00:28]} 40. Na2 {[%clk 0:00:03]}  Bd4 {[%clk 0:00:28]} 41. Kg2 {[%clk 0:00:03]}  Re8 {[%clk 0:00:28]} 42. Kf3 {[%clk 0:00:03]}  Re3+ {[%clk 0:00:28]} 43. Kf4 {[%clk 0:00:03]}  Re2 {[%clk 0:00:28]} 44. Rb8+ {[%clk 0:00:03]}  Kh7 {[%clk 0:00:28]} 45. Rb2 {[%clk 0:00:01]}  Bxb2 {[%clk 0:00:28]} 46. Nb4 {[%clk 0:00:02]}  Bc1+ {[%clk 0:00:26]} 47. Kf3 {[%clk 0:00:03]}  Re3+ {[%clk 0:00:26]} 48. Kf2 {[%clk 0:00:03]}  Rxh3 {[%clk 0:00:26]} 49. Na2 {[%clk 0:00:03]}  Rh2+ {[%clk 0:00:26]} 50. Kf3 {[%clk 0:00:04]}  Rxa2 {[%clk 0:00:26]} 51. Ke4 {[%clk 0:00:05]}  Rf2 {[%clk 0:00:26]} 52. Ke5 {[%clk 0:00:05]}  Rf6 {[%clk 0:00:27]} 53. Ke4 {[%clk 0:00:06]}  a2 {[%clk 0:00:27]} 54. Ke5 {[%clk 0:00:07]}  a1=Q+ {[%clk 0:00:28]} 55. Kd5 {[%clk 0:00:07]}  Qc3 {[%clk 0:00:27]} 56. Ke4 {[%clk 0:00:08]}  Qf3+ {[%clk 0:00:27]} 57. Ke5 {[%clk 0:00:08]}  Bb2# {[%clk 0:00:28]} 0-1


[Site "https://www.chess.com"]

[Event "Titled Tuesday Blitz February 21 Early 2023"]
[White "Leiva, Gianmarco"]
[Black "Kielinkei"]
[WhiteFideId "3804399"]
[WhiteElo "2392"]
[BlackElo "2378"]
[Result "1-0"]
[Round "01"]
[TimeControl "180+2"]
[Date "2023.02.21"]
[WhiteClock "0:01:24"]
[BlackClock "0:00:15"]

1. e4 {[%clk 0:02:59]}  c5 {[%clk 0:03:00]} 2. Nf3 {[%clk 0:02:59]}  e6 {[%clk 0:03:00]} 3. b3 {[%clk 0:02:55]}  d5 {[%clk 0:03:00]} 4. Bb5+ {[%clk 0:02:50]}  Nc6 {[%clk 0:02:52]} 5. Nc3 {[%clk 0:02:31]}  Nf6 {[%clk 0:02:37]} 6. e5 {[%clk 0:02:21]}  Nd7 {[%clk 0:02:34]} 7. O-O {[%clk 0:02:19]}  Be7 {[%clk 0:02:28]} 8. Re1 {[%clk 0:02:18]}  O-O {[%clk 0:02:27]} 9. Bxc6 {[%clk 0:02:14]}  bxc6 {[%clk 0:02:28]} 10. d3 {[%clk 0:02:13]}  f6 {[%clk 0:02:00]} 11. Bf4 {[%clk 0:01:54]}  fxe5 {[%clk 0:01:57]} 12. Bxe5 {[%clk 0:01:54]}  Nxe5 {[%clk 0:01:50]} 13. Nxe5 {[%clk 0:01:54]}  Qc7 {[%clk 0:01:44]} 14. Qe2 {[%clk 0:01:48]}  Bd6 {[%clk 0:01:31]} 15. g3 {[%clk 0:01:43]}  Rf5 {[%clk 0:01:08]} 16. f4 {[%clk 0:01:43]}  Bxe5 {[%clk 0:01:06]} 17. fxe5 {[%clk 0:01:43]}  Bd7 {[%clk 0:01:06]} 18. Na4 {[%clk 0:01:42]}  c4 {[%clk 0:00:44]} 19. Nc5 {[%clk 0:01:33]}  Raf8 {[%clk 0:00:35]} 20. d4 {[%clk 0:01:24]}  Bc8 {[%clk 0:00:17]} 21. Rf1 {[%clk 0:01:24]}  Rxf1+ {[%clk 0:00:15]} 22. Rxf1 {[%clk 0:01:24]}  Rf2 {[%clk 0:00:15]} 23. Qxf2 {[%clk 0:01:24]} 1-0


[Site "https://www.chess.com"]

[Event "Titled Tuesday Blitz February 21 Early 2023"]
[White "Maatman, Nick"]
[Black "Shubenkova, Veronika"]
[WhiteFideId "1040391"]
[BlackFideId "44124040"]
[WhiteElo "2345"]
[BlackElo "1960"]
[Result "1/2-1/2"]
[Round "01"]
[TimeControl "180+2"]
[Date "2023.02.21"]
[WhiteClock "0:00:11"]
[BlackClock "0:01:17"]

1. d4 {[%clk 0:03:00]}  d5 {[%clk 0:02:59]} 2. c4 {[%clk 0:03:00]}  e6 {[%clk 0:03:00]} 3. Nf3 {[%clk 0:02:59]}  Nf6 {[%clk 0:03:00]} 4. g3 {[%clk 0:02:47]}  c6 {[%clk 0:03:00]} 5. Bg2 {[%clk 0:02:43]}  Bd6 {[%clk 0:02:59]} 6. O-O {[%clk 0:02:42]}  O-O {[%clk 0:02:59]} 7. Nfd2 {[%clk 0:02:41]}  Be7 {[%clk 0:02:52]} 8. Nc3 {[%clk 0:02:33]}  Nbd7 {[%clk 0:02:51]} 9. e4 {[%clk 0:02:31]}  dxe4 {[%clk 0:02:51]} 10. Ndxe4 {[%clk 0:02:32]}  Nxe4 {[%clk 0:02:51]} 11. Nxe4 {[%clk 0:02:33]}  Nf6 {[%clk 0:02:51]} 12. Bf4 {[%clk 0:02:28]}  Nxe4 {[%clk 0:02:49]} 13. Bxe4 {[%clk 0:02:28]}  Bd7 {[%clk 0:02:49]} 14. Qb3 {[%clk 0:01:57]}  Qb6 {[%clk 0:02:48]} 15. Rfd1 {[%clk 0:01:45]}  Qxb3 {[%clk 0:02:47]} 16. axb3 {[%clk 0:01:45]}  a6 {[%clk 0:02:46]} 17. Kg2 {[%clk 0:01:40]}  Bf6 {[%clk 0:02:45]} 18. Be5 {[%clk 0:01:38]}  Rfd8 {[%clk 0:02:41]} 19. f4 {[%clk 0:01:25]}  Be7 {[%clk 0:02:39]} 20. c5 {[%clk 0:01:22]}  Rdc8 {[%clk 0:02:35]} 21. f5 {[%clk 0:00:48]}  exf5 {[%clk 0:02:34]} 22. Bd3 {[%clk 0:00:47]}  Be6 {[%clk 0:02:34]} 23. Bc4 {[%clk 0:00:47]}  Rd8 {[%clk 0:02:34]} 24. Ra4 {[%clk 0:00:45]}  Rd7 {[%clk 0:02:33]} 25. Re1 {[%clk 0:00:42]}  Rad8 {[%clk 0:02:32]} 26. Rb4 {[%clk 0:00:39]}  Bxc4 {[%clk 0:02:31]} 27. bxc4 {[%clk 0:00:33]}  Bf8 {[%clk 0:02:19]} 28. Kf3 {[%clk 0:00:24]}  f6 {[%clk 0:02:17]} 29. Bd6 {[%clk 0:00:24]}  Bxd6 {[%clk 0:02:16]} 30. cxd6 {[%clk 0:00:25]}  Rxd6 {[%clk 0:02:16]} 31. Rxb7 {[%clk 0:00:24]}  Rxd4 {[%clk 0:01:55]} 32. Ree7 {[%clk 0:00:23]}  g5 {[%clk 0:01:55]} 33. Rg7+ {[%clk 0:00:22]}  Kf8 {[%clk 0:01:54]} 34. Rbf7+ {[%clk 0:00:17]}  Ke8 {[%clk 0:01:54]} 35. Re7+ {[%clk 0:00:15]}  Kf8 {[%clk 0:01:54]} 36. Rgf7+ {[%clk 0:00:15]}  Kg8 {[%clk 0:01:54]} 37. Rxf6 {[%clk 0:00:15]}  Rd3+ {[%clk 0:01:53]} 38. Re3 {[%clk 0:00:14]}  g4+ {[%clk 0:01:35]} 39. Kf2 {[%clk 0:00:13]}  Rd2+ {[%clk 0:01:33]} 40. Re2 {[%clk 0:00:14]}  Rxe2+ {[%clk 0:01:31]} 41. Kxe2 {[%clk 0:00:15]}  Re8+ {[%clk 0:01:31]} 42. Kd3 {[%clk 0:00:14]}  Rd8+ {[%clk 0:01:30]} 43. Ke3 {[%clk 0:00:14]}  Re8+ {[%clk 0:01:30]} 44. Kd3 {[%clk 0:00:14]}  Rd8+ {[%clk 0:01:30]} 45. Kc3 {[%clk 0:00:14]}  Re8 {[%clk 0:01:28]} 46. Rxf5 {[%clk 0:00:14]}  Re2 {[%clk 0:01:28]} 47. Rg5+ {[%clk 0:00:14]}  Kf7 {[%clk 0:01:28]} 48. Rxg4 {[%clk 0:00:15]}  Rxh2 {[%clk 0:01:28]} 49. Rd4 {[%clk 0:00:14]}  Ke6 {[%clk 0:01:28]} 50. c5 {[%clk 0:00:14]}  Rg2 {[%clk 0:01:28]} 51. Rd6+ {[%clk 0:00:14]}  Ke5 {[%clk 0:01:27]} 52. Rxc6 {[%clk 0:00:15]}  Rxg3+ {[%clk 0:01:27]} 53. Kb4 {[%clk 0:00:15]}  Rg4+ {[%clk 0:01:26]} 54. Ka5 {[%clk 0:00:15]}  Kd5 {[%clk 0:01:26]} 55. Rc8 {[%clk 0:00:13]}  Rg2 {[%clk 0:01:24]} 56. b4 {[%clk 0:00:13]}  Ra2+ {[%clk 0:01:24]} 57. Kb6 {[%clk 0:00:13]}  Ra4 {[%clk 0:01:25]} 58. Rd8+ {[%clk 0:00:14]}  Ke6 {[%clk 0:01:24]} 59. c6 {[%clk 0:00:14]}  Rxb4+ {[%clk 0:01:25]} 60. Kc7 {[%clk 0:00:15]}  Rc4 {[%clk 0:01:22]} 61. Rd1 {[%clk 0:00:10]}  a5 {[%clk 0:01:21]} 62. Re1+ {[%clk 0:00:11]}  Kd5 {[%clk 0:01:20]} 63. Kd7 {[%clk 0:00:11]}  a4 {[%clk 0:01:18]} 64. c7 {[%clk 0:00:12]}  Rxc7+ {[%clk 0:01:17]} 65. Kxc7 {[%clk 0:00:11]}  Kc4 {[%clk 0:01:18]} 66. Kb6 {[%clk 0:00:11]}  a3 {[%clk 0:01:18]} 67. Ka5 {[%clk 0:00:11]}  a2 {[%clk 0:01:18]} 68. Rh1 {[%clk 0:00:08]}  Kb3 {[%clk 0:01:18]} 69. Kb5 {[%clk 0:00:09]}  Kb2 {[%clk 0:01:18]} 70. Rh2+ {[%clk 0:00:08]}  Kb3 {[%clk 0:01:17]} 71. Rh3+ {[%clk 0:00:09]}  Kb2 {[%clk 0:01:17]} 72. Rh2+ {[%clk 0:00:09]}  Kb3 {[%clk 0:01:17]} 73. Rh3+ {[%clk 0:00:10]}  Kb2 {[%clk 0:01:17]} 74. Rh2+ {[%clk 0:00:11]} 1/2-1/2


[Site "https://www.chess.com"]